[Event "Titled Tuesday Blitz December 20 Late 2022"]
[White "Veiga, Jose Francisco R P Neves"]
[Black "Matthes, Aaron"]
[WhiteFideId "1930087"]
[BlackFideId "16227310"]
[WhiteElo "2320"]
[BlackElo "2347"]
[Result "1-0"]
[Round "05"]
[TimeControl "180+1"]
[Date "2022.12.21"]
[WhiteClock "0:00:06"]
[BlackClock "0:00:25"]

1. Nf3 {[%clk 0:02:58]}  d5 {[%clk 0:02:58]} 2. d4 {[%clk 0:02:59]}  Nf6 {[%clk 0:02:58]} 3. Bg5 {[%clk 0:02:57]}  c6 {[%clk 0:02:53]} 4. Nbd2 {[%clk 0:02:57]}  Bf5 {[%clk 0:02:52]} 5. Nh4 {[%clk 0:02:56]}  Bg4 {[%clk 0:02:50]} 6. h3 {[%clk 0:02:55]}  Be6 {[%clk 0:02:50]} 7. e3 {[%clk 0:02:50]}  Nbd7 {[%clk 0:02:49]} 8. Bd3 {[%clk 0:02:49]}  h6 {[%clk 0:02:49]} 9. Bxf6 {[%clk 0:02:48]}  Nxf6 {[%clk 0:02:49]} 10. Nf5 {[%clk 0:02:48]}  Bxf5 {[%clk 0:02:44]} 11. Bxf5 {[%clk 0:02:47]}  e6 {[%clk 0:02:45]} 12. Bd3 {[%clk 0:02:48]}  Qb6 {[%clk 0:02:43]} 13. O-O {[%clk 0:02:45]}  Bd6 {[%clk 0:02:41]} 14. c4 {[%clk 0:02:30]}  Qc7 {[%clk 0:02:36]} 15. e4 {[%clk 0:02:28]}  dxe4 {[%clk 0:02:34]} 16. Nxe4 {[%clk 0:02:29]}  Nxe4 {[%clk 0:02:34]} 17. Bxe4 {[%clk 0:02:30]}  Rd8 {[%clk 0:02:32]} 18. Qf3 {[%clk 0:02:18]}  Be7 {[%clk 0:02:30]} 19. Rad1 {[%clk 0:02:17]}  Bf6 {[%clk 0:02:29]} 20. d5 {[%clk 0:02:16]}  cxd5 {[%clk 0:02:27]} 21. cxd5 {[%clk 0:02:16]}  exd5 {[%clk 0:02:27]} 22. Bxd5 {[%clk 0:02:15]}  O-O {[%clk 0:02:27]} 23. Qb3 {[%clk 0:02:12]}  b6 {[%clk 0:02:22]} 24. Rfe1 {[%clk 0:02:07]}  Rd7 {[%clk 0:02:19]} 25. Rc1 {[%clk 0:01:54]}  Qd6 {[%clk 0:02:15]} 26. Bf3 {[%clk 0:01:48]}  Rfd8 {[%clk 0:02:09]} 27. Rc6 {[%clk 0:01:43]}  Qd4 {[%clk 0:02:05]} 28. Rc2 {[%clk 0:01:13]}  Bh4 {[%clk 0:01:58]} 29. Rd1 {[%clk 0:01:00]}  Qf6 {[%clk 0:01:37]} 30. Rxd7 {[%clk 0:00:58]}  Rxd7 {[%clk 0:01:38]} 31. g3 {[%clk 0:00:55]}  Bg5 {[%clk 0:01:37]} 32. h4 {[%clk 0:00:54]}  Bd2 {[%clk 0:01:35]} 33. Qb5 {[%clk 0:00:33]}  Qd6 {[%clk 0:01:25]} 34. Be4 {[%clk 0:00:29]}  g6 {[%clk 0:01:20]} 35. h5 {[%clk 0:00:25]}  Bg5 {[%clk 0:01:17]} 36. hxg6 {[%clk 0:00:20]}  fxg6 {[%clk 0:01:18]} 37. Bxg6 {[%clk 0:00:20]}  Kg7 {[%clk 0:01:05]} 38. Be4 {[%clk 0:00:18]}  Rf7 {[%clk 0:01:03]} 39. Kg2 {[%clk 0:00:17]}  Qd4 {[%clk 0:00:59]} 40. Re2 {[%clk 0:00:15]}  Be7 {[%clk 0:00:55]} 41. Qd5 {[%clk 0:00:14]}  Bc5 {[%clk 0:00:51]} 42. Qxd4+ {[%clk 0:00:15]}  Bxd4 {[%clk 0:00:52]} 43. f4 {[%clk 0:00:16]}  Rc7 {[%clk 0:00:50]} 44. Kf3 {[%clk 0:00:15]}  Kf6 {[%clk 0:00:50]} 45. Bd5 {[%clk 0:00:14]}  Re7 {[%clk 0:00:49]} 46. Be4 {[%clk 0:00:13]}  Rc7 {[%clk 0:00:48]} 47. Rh2 {[%clk 0:00:13]}  Kg7 {[%clk 0:00:47]} 48. Rd2 {[%clk 0:00:12]}  Bf6 {[%clk 0:00:46]} 49. Kg4 {[%clk 0:00:10]}  Re7 {[%clk 0:00:44]} 50. Kf5 {[%clk 0:00:10]}  Rc7 {[%clk 0:00:39]} 51. Rd6 {[%clk 0:00:09]}  Bxb2 {[%clk 0:00:37]} 52. Rg6+ {[%clk 0:00:08]}  Kh7 {[%clk 0:00:36]} 53. Ke6 {[%clk 0:00:07]}  Bg7 {[%clk 0:00:31]} 54. f5 {[%clk 0:00:07]}  Kg8 {[%clk 0:00:29]} 55. f6 {[%clk 0:00:07]}  Rc6+ {[%clk 0:00:25]} 56. Bxc6 {[%clk 0:00:06]} 1-0


[Site "https://www.chess.com"]

[Event "Titled Tuesday Blitz December 20 Late 2022"]
[White "Wieczorek, Oskar"]
[Black "Jimenez Almeida, Luis David"]
[WhiteFideId "1133950"]
[BlackFideId "22242244"]
[WhiteElo "2415"]
[BlackElo "2158"]
[Result "0-1"]
[Round "05"]
[TimeControl "180+1"]
[Date "2022.12.21"]
[WhiteClock "0:00:22"]
[BlackClock "0:00:14"]

1. e4 {[%clk 0:01:41]}  Nf6 {[%clk 0:02:58]} 2. e5 {[%clk 0:01:40]}  Nd5 {[%clk 0:02:58]} 3. d4 {[%clk 0:01:41]}  d6 {[%clk 0:02:58]} 4. Nf3 {[%clk 0:01:42]}  Bg4 {[%clk 0:02:58]} 5. Be2 {[%clk 0:01:42]}  e6 {[%clk 0:02:58]} 6. O-O {[%clk 0:01:41]}  Be7 {[%clk 0:02:58]} 7. c4 {[%clk 0:01:41]}  Nb6 {[%clk 0:02:58]} 8. Nc3 {[%clk 0:01:42]}  O-O {[%clk 0:02:58]} 9. h3 {[%clk 0:01:39]}  Bh5 {[%clk 0:02:57]} 10. Be3 {[%clk 0:01:39]}  N8d7 {[%clk 0:02:54]} 11. exd6 {[%clk 0:01:39]}  cxd6 {[%clk 0:02:53]} 12. a4 {[%clk 0:01:40]}  a5 {[%clk 0:02:52]} 13. b3 {[%clk 0:01:11]}  Rc8 {[%clk 0:02:49]} 14. Nb5 {[%clk 0:01:10]}  Nf6 {[%clk 0:02:38]} 15. Bf4 {[%clk 0:01:01]}  Na8 {[%clk 0:02:19]} 16. Bh2 {[%clk 0:00:58]}  Nc7 {[%clk 0:02:19]} 17. Re1 {[%clk 0:00:58]}  Na6 {[%clk 0:02:17]} 18. Nd2 {[%clk 0:00:53]}  Bg6 {[%clk 0:02:15]} 19. Nf1 {[%clk 0:00:46]}  Nb4 {[%clk 0:02:14]} 20. Ne3 {[%clk 0:00:47]}  b6 {[%clk 0:02:10]} 21. Bf4 {[%clk 0:00:37]}  d5 {[%clk 0:02:00]} 22. Rc1 {[%clk 0:00:33]}  dxc4 {[%clk 0:01:59]} 23. bxc4 {[%clk 0:00:33]}  Qd7 {[%clk 0:01:37]} 24. Ng4 {[%clk 0:00:32]}  Nxg4 {[%clk 0:01:32]} 25. hxg4 {[%clk 0:00:26]}  Rfd8 {[%clk 0:01:25]} 26. Qd2 {[%clk 0:00:26]}  Nc6 {[%clk 0:01:21]} 27. Red1 {[%clk 0:00:25]}  e5 {[%clk 0:00:53]} 28. dxe5 {[%clk 0:00:22]}  Qxd2 {[%clk 0:00:53]} 29. Rxd2 {[%clk 0:00:20]}  Rxd2 {[%clk 0:00:52]} 30. Bxd2 {[%clk 0:00:21]}  Nxe5 {[%clk 0:00:53]} 31. Be3 {[%clk 0:00:20]}  Bc5 {[%clk 0:00:48]} 32. Bxc5 {[%clk 0:00:20]}  Rxc5 {[%clk 0:00:48]} 33. f4 {[%clk 0:00:21]}  Bd3 {[%clk 0:00:41]} 34. Bxd3 {[%clk 0:00:21]}  Nxd3 {[%clk 0:00:41]} 35. Rd1 {[%clk 0:00:20]}  h5 {[%clk 0:00:24]} 36. Rxd3 {[%clk 0:00:20]}  hxg4 {[%clk 0:00:25]} 37. Rd4 {[%clk 0:00:16]}  Kh7 {[%clk 0:00:23]} 38. Nc3 {[%clk 0:00:16]}  f5 {[%clk 0:00:23]} 39. Nd5 {[%clk 0:00:16]}  Rc6 {[%clk 0:00:21]} 40. Kf2 {[%clk 0:00:17]}  Kh6 {[%clk 0:00:20]} 41. Ke3 {[%clk 0:00:17]}  g5 {[%clk 0:00:21]} 42. fxg5+ {[%clk 0:00:16]}  Kxg5 {[%clk 0:00:22]} 43. g3 {[%clk 0:00:16]}  Re6+ {[%clk 0:00:22]} 44. Kd3 {[%clk 0:00:17]}  Rg6 {[%clk 0:00:21]} 45. Nf4 {[%clk 0:00:16]}  Rh6 {[%clk 0:00:20]} 46. Rd5 {[%clk 0:00:16]}  Rh1 {[%clk 0:00:19]} 47. Rd6 {[%clk 0:00:17]}  Rd1+ {[%clk 0:00:16]} 48. Kc3 {[%clk 0:00:14]}  Rxd6 {[%clk 0:00:17]} 49. c5 {[%clk 0:00:14]}  Rc6 {[%clk 0:00:17]} 50. Kc4 {[%clk 0:00:15]}  Rxc5+ {[%clk 0:00:17]} 51. Kd4 {[%clk 0:00:16]}  Rc1 {[%clk 0:00:15]} 52. Ke5 {[%clk 0:00:17]}  Re1+ {[%clk 0:00:14]} 53. Kd6 {[%clk 0:00:17]}  Ra1 {[%clk 0:00:15]} 54. Ke7 {[%clk 0:00:17]}  Rxa4 {[%clk 0:00:15]} 55. Ne6+ {[%clk 0:00:18]}  Kg6 {[%clk 0:00:15]} 56. Nf8+ {[%clk 0:00:19]}  Kg7 {[%clk 0:00:15]} 57. Ne6+ {[%clk 0:00:20]}  Kh7 {[%clk 0:00:16]} 58. Kf7 {[%clk 0:00:20]}  f4 {[%clk 0:00:13]} 59. Ng5+ {[%clk 0:00:19]}  Kh6 {[%clk 0:00:13]} 60. Kf6 {[%clk 0:00:20]}  fxg3 {[%clk 0:00:12]} 61. Nf7+ {[%clk 0:00:21]}  Kh5 {[%clk 0:00:12]} 62. Kg7 {[%clk 0:00:22]}  g2 {[%clk 0:00:11]} 63. Kg8 {[%clk 0:00:22]}  g1=Q {[%clk 0:00:11]} 64. Kg7 {[%clk 0:00:23]}  Qd4+ {[%clk 0:00:11]} 65. Kg8 {[%clk 0:00:24]}  Qd5 {[%clk 0:00:12]} 66. Kg7 {[%clk 0:00:24]}  Qxf7+ {[%clk 0:00:12]} 67. Kh8 {[%clk 0:00:24]}  Qf8+ {[%clk 0:00:12]} 68. Kh7 {[%clk 0:00:24]}  Qe7+ {[%clk 0:00:13]} 69. Kh8 {[%clk 0:00:24]}  Rc4 {[%clk 0:00:13]} 70. Kg8 {[%clk 0:00:22]}  Rc8# {[%clk 0:00:14]} 0-1


[Site "https://www.chess.com"]

[Event "Titled Tuesday Blitz December 20 Late 2022"]
[White "Zeman, Matyas"]
[Black "Haydon, David L"]
[WhiteFideId "364398"]
[BlackFideId "415405"]
[WhiteElo "2254"]
[BlackElo "2318"]
[Result "0-1"]
[Round "05"]
[TimeControl "180+1"]
[Date "2022.12.21"]
[WhiteClock "0:00:01"]
[BlackClock "0:00:19"]

1. d4 {[%clk 0:03:00]}  c6 {[%clk 0:03:00]} 2. Bf4 {[%clk 0:02:58]}  d5 {[%clk 0:03:01]} 3. e3 {[%clk 0:02:58]}  Bf5 {[%clk 0:03:02]} 4. Bd3 {[%clk 0:02:56]}  e6 {[%clk 0:03:02]} 5. Nf3 {[%clk 0:02:52]}  Nf6 {[%clk 0:03:00]} 6. O-O {[%clk 0:02:51]}  Qb6 {[%clk 0:03:00]} 7. Bxf5 {[%clk 0:02:44]}  exf5 {[%clk 0:02:59]} 8. Nbd2 {[%clk 0:02:42]}  Nbd7 {[%clk 0:02:57]} 9. c4 {[%clk 0:02:40]}  Be7 {[%clk 0:02:56]} 10. Qc2 {[%clk 0:02:40]}  g6 {[%clk 0:02:54]} 11. h3 {[%clk 0:02:24]}  Qa6 {[%clk 0:02:53]} 12. Ne5 {[%clk 0:02:05]}  Rd8 {[%clk 0:02:49]} 13. Nxd7 {[%clk 0:02:02]}  Rxd7 {[%clk 0:02:46]} 14. Be5 {[%clk 0:02:02]}  O-O {[%clk 0:02:46]} 15. Bxf6 {[%clk 0:01:53]}  Bxf6 {[%clk 0:02:45]} 16. c5 {[%clk 0:01:53]}  f4 {[%clk 0:02:43]} 17. Nb3 {[%clk 0:01:32]}  fxe3 {[%clk 0:02:39]} 18. fxe3 {[%clk 0:01:33]}  Bg5 {[%clk 0:02:39]} 19. Rf3 {[%clk 0:01:27]}  Re7 {[%clk 0:02:38]} 20. Re1 {[%clk 0:01:17]}  Rfe8 {[%clk 0:02:38]} 21. Kf2 {[%clk 0:01:14]}  Qa4 {[%clk 0:02:27]} 22. a3 {[%clk 0:01:00]}  f5 {[%clk 0:02:24]} 23. g3 {[%clk 0:00:57]}  Re4 {[%clk 0:02:20]} 24. Re2 {[%clk 0:00:48]}  Qb5 {[%clk 0:02:12]} 25. Nc1 {[%clk 0:00:46]}  Kg7 {[%clk 0:02:04]} 26. Nd3 {[%clk 0:00:40]}  a5 {[%clk 0:02:01]} 27. b3 {[%clk 0:00:35]}  Qa6 {[%clk 0:01:58]} 28. a4 {[%clk 0:00:26]}  Bf6 {[%clk 0:01:57]} 29. Nf4 {[%clk 0:00:22]}  Qa7 {[%clk 0:01:46]} 30. Qd3 {[%clk 0:00:19]}  b6 {[%clk 0:01:40]} 31. cxb6 {[%clk 0:00:18]}  Qxb6 {[%clk 0:01:39]} 32. Qc3 {[%clk 0:00:17]}  Rxd4 {[%clk 0:01:35]} 33. exd4 {[%clk 0:00:08]}  Bxd4+ {[%clk 0:01:33]} 34. Kf1 {[%clk 0:00:07]}  Rxe2 {[%clk 0:01:31]} 35. Qd3 {[%clk 0:00:05]}  Re4 {[%clk 0:01:30]} 36. Ne2 {[%clk 0:00:03]}  Bf6 {[%clk 0:01:27]} 37. g4 {[%clk 0:00:03]}  fxg4 {[%clk 0:01:24]} 38. hxg4 {[%clk 0:00:04]}  Qb4 {[%clk 0:01:22]} 39. Ng3 {[%clk 0:00:01]}  Rxg4 {[%clk 0:01:18]} 40. Ne2 {[%clk 0:00:01]}  Qc5 {[%clk 0:01:14]} 41. Qa6 {[%clk 0:00:01]}  Be7 {[%clk 0:01:06]} 42. Qb7 {[%clk 0:00:01]}  Re4 {[%clk 0:01:03]} 43. Qd7 {[%clk 0:00:02]}  Qc2 {[%clk 0:00:59]} 44. Ng3 {[%clk 0:00:02]}  Qc1+ {[%clk 0:00:44]} 45. Kg2 {[%clk 0:00:03]}  Re5 {[%clk 0:00:40]} 46. Qe8 {[%clk 0:00:02]}  Qg5 {[%clk 0:00:25]} 47. Qf7+ {[%clk 0:00:02]}  Kh6 {[%clk 0:00:24]} 48. Qg8 {[%clk 0:00:01]}  Qg4 {[%clk 0:00:19]} 0-1


[Site "https://www.chess.com"]

[Event "Titled Tuesday Blitz December 20 Late 2022"]
[White "Zhigalko, Sergei"]
[Black "Lazavik, Denis"]
[WhiteFideId "13502956"]
[BlackFideId "13515110"]
[WhiteElo "2662"]
[BlackElo "2484"]
[Result "1/2-1/2"]
[Round "05"]
[TimeControl "180+1"]
[Date "2022.12.20"]
[WhiteClock "0:00:04"]
[BlackClock "0:00:21"]

1. e4 {[%clk 0:03:00]}  e5 {[%clk 0:03:00]} 2. Nf3 {[%clk 0:03:00]}  Nc6 {[%clk 0:03:01]} 3. Bb5 {[%clk 0:03:00]}  Nf6 {[%clk 0:03:01]} 4. d3 {[%clk 0:03:01]}  Bc5 {[%clk 0:03:00]} 5. Bxc6 {[%clk 0:03:01]}  dxc6 {[%clk 0:03:00]} 6. Nbd2 {[%clk 0:03:01]}  Nd7 {[%clk 0:02:59]} 7. Qe2 {[%clk 0:02:54]}  f6 {[%clk 0:02:56]} 8. Nh4 {[%clk 0:02:37]}  O-O {[%clk 0:02:38]} 9. Nf5 {[%clk 0:02:17]}  Rf7 {[%clk 0:02:31]} 10. h4 {[%clk 0:02:15]}  Nf8 {[%clk 0:02:28]} 11. Qg4 {[%clk 0:02:04]}  Kh8 {[%clk 0:02:24]} 12. h5 {[%clk 0:02:04]}  Ne6 {[%clk 0:02:18]} 13. Nf3 {[%clk 0:02:04]}  Nd4 {[%clk 0:01:58]} 14. N3xd4 {[%clk 0:01:59]}  Bxd4 {[%clk 0:01:58]} 15. Rh3 {[%clk 0:01:46]}  Be6 {[%clk 0:01:56]} 16. c3 {[%clk 0:01:04]}  Bb6 {[%clk 0:01:54]} 17. Be3 {[%clk 0:00:55]}  Qd7 {[%clk 0:01:44]} 18. Bxb6 {[%clk 0:00:39]}  axb6 {[%clk 0:01:43]} 19. a3 {[%clk 0:00:40]}  b5 {[%clk 0:01:30]} 20. Rd1 {[%clk 0:00:39]}  Bxf5 {[%clk 0:01:12]} 21. Qxf5 {[%clk 0:00:28]}  Qxf5 {[%clk 0:01:05]} 22. exf5 {[%clk 0:00:29]}  h6 {[%clk 0:01:05]} 23. d4 {[%clk 0:00:19]}  Ra4 {[%clk 0:01:00]} 24. Rhd3 {[%clk 0:00:06]}  Re7 {[%clk 0:00:59]} 25. Kf1 {[%clk 0:00:06]}  exd4 {[%clk 0:00:36]} 26. Rxd4 {[%clk 0:00:06]}  Kg8 {[%clk 0:00:32]} 27. g4 {[%clk 0:00:04]}  Kf7 {[%clk 0:00:29]} 28. Rxa4 {[%clk 0:00:03]}  bxa4 {[%clk 0:00:30]} 29. Rd8 {[%clk 0:00:03]}  b5 {[%clk 0:00:21]} 30. f3 {[%clk 0:00:03]}  Re3 {[%clk 0:00:21]} 31. Kf2 {[%clk 0:00:03]}  Re7 {[%clk 0:00:21]} 32. Kf1 {[%clk 0:00:03]}  Re3 {[%clk 0:00:21]} 33. Kf2 {[%clk 0:00:04]}  Re7 {[%clk 0:00:21]} 34. Kf1 {[%clk 0:00:04]} 1/2-1/2


[Site "https://www.chess.com"]

[Event "Titled Tuesday Blitz December 20 Late 2022"]
[White "benny_aizenberg"]
[Black "Tanenbaum, Zachary"]
[BlackFideId "2060850"]
[WhiteElo "2410"]
[BlackElo "2175"]
[Result "0-1"]
[Round "05"]
[TimeControl "180+1"]
[Date "2022.12.21"]
[WhiteClock "0:00:24"]
[BlackClock "0:00:25"]

1. e4 {[%clk 0:03:00]}  e5 {[%clk 0:03:00]} 2. Nf3 {[%clk 0:03:00]}  Nc6 {[%clk 0:03:01]} 3. d4 {[%clk 0:03:00]}  exd4 {[%clk 0:03:01]} 4. Nxd4 {[%clk 0:03:01]}  Bc5 {[%clk 0:03:01]} 5. Nb3 {[%clk 0:02:59]}  Bb6 {[%clk 0:03:01]} 6. Nc3 {[%clk 0:03:00]}  Nf6 {[%clk 0:03:01]} 7. Bg5 {[%clk 0:03:00]}  h6 {[%clk 0:03:01]} 8. Bh4 {[%clk 0:02:58]}  O-O {[%clk 0:03:02]} 9. a4 {[%clk 0:02:54]}  a5 {[%clk 0:03:02]} 10. Qe2 {[%clk 0:02:45]}  Nd4 {[%clk 0:03:02]} 11. Qd3 {[%clk 0:02:46]}  Nxb3 {[%clk 0:03:01]} 12. cxb3 {[%clk 0:02:46]}  Re8 {[%clk 0:03:01]} 13. O-O-O {[%clk 0:02:46]}  c6 {[%clk 0:03:02]} 14. f4 {[%clk 0:02:44]}  d5 {[%clk 0:02:52]} 15. e5 {[%clk 0:02:42]}  g5 {[%clk 0:02:41]} 16. fxg5 {[%clk 0:02:38]}  Ng4 {[%clk 0:02:41]} 17. Be2 {[%clk 0:02:08]}  Nxe5 {[%clk 0:02:04]} 18. Qg3 {[%clk 0:02:04]}  Ng6 {[%clk 0:02:04]} 19. Rhf1 {[%clk 0:01:35]}  Bc7 {[%clk 0:01:11]} 20. Qf2 {[%clk 0:01:30]}  Be6 {[%clk 0:01:07]} 21. Bd3 {[%clk 0:01:22]}  Nxh4 {[%clk 0:01:05]} 22. Qxh4 {[%clk 0:00:58]}  Qxg5+ {[%clk 0:01:05]} 23. Qxg5+ {[%clk 0:00:58]}  hxg5 {[%clk 0:01:06]} 24. h3 {[%clk 0:00:46]}  Kg7 {[%clk 0:00:59]} 25. Ne2 {[%clk 0:00:45]}  Be5 {[%clk 0:00:50]} 26. Rde1 {[%clk 0:00:40]}  f6 {[%clk 0:00:46]} 27. Kc2 {[%clk 0:00:39]}  Re7 {[%clk 0:00:38]} 28. Ng1 {[%clk 0:00:35]}  Rae8 {[%clk 0:00:36]} 29. Nf3 {[%clk 0:00:35]}  Bg3 {[%clk 0:00:36]} 30. Rxe6 {[%clk 0:00:25]}  Rxe6 {[%clk 0:00:35]} 31. Nd4 {[%clk 0:00:25]}  Re5 {[%clk 0:00:27]} 32. Nf5+ {[%clk 0:00:25]}  Rxf5 {[%clk 0:00:28]} 33. Rxf5 {[%clk 0:00:25]}  Bf4 {[%clk 0:00:25]} 34. h4 {[%clk 0:00:24]}  Re1 {[%clk 0:00:25]} 35. h5 {[%clk 0:00:24]}  Rc1# {[%clk 0:00:25]} 0-1


[Site "https://www.chess.com"]

[Event "Titled Tuesday Blitz December 20 Late 2022"]
[White "gshwbedhkhd"]
[Black "Szyszylo, Rafal"]
[BlackFideId "1109626"]
[WhiteElo "2568"]
[BlackElo "1981"]
[Result "1-0"]
[Round "05"]
[TimeControl "180+1"]
[Date "2022.12.21"]
[WhiteClock "0:00:07"]
[BlackClock "0:00:04"]

1. e4 {[%clk 0:03:00]}  g6 {[%clk 0:02:59]} 2. d4 {[%clk 0:02:59]}  Bg7 {[%clk 0:02:57]} 3. Nc3 {[%clk 0:02:57]}  d6 {[%clk 0:02:57]} 4. Be3 {[%clk 0:02:55]}  c6 {[%clk 0:02:57]} 5. Qd2 {[%clk 0:02:55]}  b5 {[%clk 0:02:57]} 6. O-O-O {[%clk 0:02:54]}  Nd7 {[%clk 0:02:56]} 7. Kb1 {[%clk 0:02:53]}  Nb6 {[%clk 0:02:56]} 8. b3 {[%clk 0:02:49]}  a5 {[%clk 0:02:54]} 9. f4 {[%clk 0:02:44]}  a4 {[%clk 0:02:54]} 10. Nf3 {[%clk 0:02:41]}  Bg4 {[%clk 0:02:51]} 11. Be2 {[%clk 0:02:39]}  Qb8 {[%clk 0:02:47]} 12. h3 {[%clk 0:02:37]}  Bxf3 {[%clk 0:02:38]} 13. Bxf3 {[%clk 0:02:37]}  b4 {[%clk 0:02:02]} 14. Ne2 {[%clk 0:02:36]}  Nf6 {[%clk 0:01:48]} 15. Qxb4 {[%clk 0:02:31]}  O-O {[%clk 0:01:40]} 16. g4 {[%clk 0:02:24]}  Qc7 {[%clk 0:01:39]} 17. g5 {[%clk 0:02:20]}  Nfd7 {[%clk 0:01:38]} 18. h4 {[%clk 0:02:15]}  Rfb8 {[%clk 0:01:32]} 19. Qc3 {[%clk 0:02:15]}  c5 {[%clk 0:01:31]} 20. h5 {[%clk 0:02:14]}  axb3 {[%clk 0:01:29]} 21. cxb3 {[%clk 0:02:13]}  Na4 {[%clk 0:01:28]} 22. Qc2 {[%clk 0:02:02]}  Qa5 {[%clk 0:01:24]} 23. hxg6 {[%clk 0:01:58]}  hxg6 {[%clk 0:01:22]} 24. e5 {[%clk 0:01:52]}  cxd4 {[%clk 0:01:15]} 25. Bxd4 {[%clk 0:01:47]}  dxe5 {[%clk 0:01:15]} 26. fxe5 {[%clk 0:01:40]}  Nxe5 {[%clk 0:01:14]} 27. Bxa8 {[%clk 0:01:36]}  Qxa8 {[%clk 0:01:12]} 28. Nf4 {[%clk 0:01:23]}  Rc8 {[%clk 0:00:57]} 29. Qh2 {[%clk 0:01:11]}  Qe4+ {[%clk 0:00:55]} 30. Ka1 {[%clk 0:00:59]}  Nc5 {[%clk 0:00:29]} 31. Qh7+ {[%clk 0:00:20]}  Kf8 {[%clk 0:00:29]} 32. Nxg6+ {[%clk 0:00:20]}  Qxg6 {[%clk 0:00:20]} 33. Qxg6 {[%clk 0:00:19]}  Nxg6 {[%clk 0:00:19]} 34. Bxg7+ {[%clk 0:00:17]}  Kxg7 {[%clk 0:00:20]} 35. Rc1 {[%clk 0:00:17]}  Rc7 {[%clk 0:00:16]} 36. b4 {[%clk 0:00:12]}  Na6 {[%clk 0:00:17]} 37. b5 {[%clk 0:00:11]}  Rxc1+ {[%clk 0:00:16]} 38. Rxc1 {[%clk 0:00:11]}  Nb8 {[%clk 0:00:11]} 39. Rc7 {[%clk 0:00:12]}  Ne5 {[%clk 0:00:10]} 40. Rxe7 {[%clk 0:00:11]}  Ned7 {[%clk 0:00:09]} 41. a4 {[%clk 0:00:09]}  Kg6 {[%clk 0:00:10]} 42. a5 {[%clk 0:00:07]}  Kxg5 {[%clk 0:00:09]} 43. a6 {[%clk 0:00:07]}  Nxa6 {[%clk 0:00:01]} 44. bxa6 {[%clk 0:00:06]}  Nb6 {[%clk 0:00:02]} 45. a7 {[%clk 0:00:06]}  f5 {[%clk 0:00:02]} 46. Rb7 {[%clk 0:00:06]}  Na8 {[%clk 0:00:02]} 47. Rb8 {[%clk 0:00:06]}  Nc7 {[%clk 0:00:01]} 48. Rc8 {[%clk 0:00:07]}  Na8 {[%clk 0:00:01]} 49. Rxa8 {[%clk 0:00:06]}  f4 {[%clk 0:00:02]} 50. Rf8 {[%clk 0:00:07]}  Kg4 {[%clk 0:00:02]} 51. a8=Q {[%clk 0:00:06]}  f3 {[%clk 0:00:03]} 52. Qxf3+ {[%clk 0:00:06]}  Kg5 {[%clk 0:00:04]} 53. Rg8+ {[%clk 0:00:06]}  Kh4 {[%clk 0:00:04]} 54. Qh1# {[%clk 0:00:07]} 1-0


[Site "https://www.chess.com"]

[Event "Titled Tuesday Blitz December 20 Late 2022"]
[White "Abdrlauf, Elham"]
[Black "Caruana, Fabiano"]
[WhiteFideId "1533533"]
[BlackFideId "2020009"]
[WhiteElo "2454"]
[BlackElo "2847"]
[Result "1/2-1/2"]
[Round "06"]
[TimeControl "180+1"]
[Date "2022.12.20"]
[WhiteClock "0:00:02"]
[BlackClock "0:00:18"]

1. e4 {[%clk 0:03:00]}  e5 {[%clk 0:02:59]} 2. Nc3 {[%clk 0:03:00]}  Nc6 {[%clk 0:02:58]} 3. Bc4 {[%clk 0:03:01]}  Nf6 {[%clk 0:02:54]} 4. d3 {[%clk 0:03:01]}  Bc5 {[%clk 0:02:54]} 5. f4 {[%clk 0:03:01]}  exf4 {[%clk 0:02:52]} 6. Bxf4 {[%clk 0:03:02]}  d6 {[%clk 0:02:52]} 7. Nf3 {[%clk 0:03:01]}  O-O {[%clk 0:02:53]} 8. Qd2 {[%clk 0:02:54]}  Be6 {[%clk 0:02:53]} 9. Bxe6 {[%clk 0:02:44]}  fxe6 {[%clk 0:02:54]} 10. Be3 {[%clk 0:02:44]}  Bb4 {[%clk 0:02:51]} 11. a3 {[%clk 0:02:36]}  Ba5 {[%clk 0:02:50]} 12. b4 {[%clk 0:02:21]}  Bb6 {[%clk 0:02:51]} 13. Bxb6 {[%clk 0:02:21]}  axb6 {[%clk 0:02:51]} 14. O-O {[%clk 0:02:22]}  e5 {[%clk 0:02:45]} 15. Nd5 {[%clk 0:02:03]}  Nxd5 {[%clk 0:02:43]} 16. exd5 {[%clk 0:02:04]}  Ne7 {[%clk 0:02:44]} 17. c4 {[%clk 0:02:04]}  h6 {[%clk 0:02:41]} 18. a4 {[%clk 0:01:17]}  Ng6 {[%clk 0:02:40]} 19. a5 {[%clk 0:01:14]}  bxa5 {[%clk 0:02:37]} 20. bxa5 {[%clk 0:01:15]}  Qd7 {[%clk 0:02:32]} 21. h3 {[%clk 0:01:03]}  Nf4 {[%clk 0:02:31]} 22. Qe3 {[%clk 0:00:59]}  Rf7 {[%clk 0:02:20]} 23. Nd2 {[%clk 0:00:55]}  c6 {[%clk 0:01:56]} 24. dxc6 {[%clk 0:00:42]}  bxc6 {[%clk 0:01:57]} 25. Kh2 {[%clk 0:00:27]}  Qf5 {[%clk 0:01:40]} 26. Ne4 {[%clk 0:00:26]}  d5 {[%clk 0:01:40]} 27. cxd5 {[%clk 0:00:21]}  cxd5 {[%clk 0:01:40]} 28. Ng3 {[%clk 0:00:18]}  Qg5 {[%clk 0:01:31]} 29. Rf2 {[%clk 0:00:10]}  Nxh3 {[%clk 0:01:08]} 30. Qxg5 {[%clk 0:00:09]}  Nxg5 {[%clk 0:01:09]} 31. Rxf7 {[%clk 0:00:09]}  Kxf7 {[%clk 0:01:10]} 32. a6 {[%clk 0:00:07]}  Ra7 {[%clk 0:01:09]} 33. Nf5 {[%clk 0:00:06]}  Ke6 {[%clk 0:00:54]} 34. Nxg7+ {[%clk 0:00:06]}  Kd6 {[%clk 0:00:55]} 35. Nf5+ {[%clk 0:00:06]}  Kc5 {[%clk 0:00:55]} 36. Nxh6 {[%clk 0:00:06]}  Ne6 {[%clk 0:00:45]} 37. Ng4 {[%clk 0:00:04]}  Kd6 {[%clk 0:00:42]} 38. Ne3 {[%clk 0:00:03]}  Nc5 {[%clk 0:00:40]} 39. Nf5+ {[%clk 0:00:03]}  Ke6 {[%clk 0:00:39]} 40. Ng7+ {[%clk 0:00:03]}  Kf6 {[%clk 0:00:37]} 41. Ne8+ {[%clk 0:00:03]}  Ke7 {[%clk 0:00:37]} 42. Nc7 {[%clk 0:00:03]}  Kd7 {[%clk 0:00:31]} 43. Nxd5 {[%clk 0:00:03]}  Nxd3 {[%clk 0:00:31]} 44. Rd1 {[%clk 0:00:02]}  Nf2 {[%clk 0:00:30]} 45. Rd2 {[%clk 0:00:02]}  Ng4+ {[%clk 0:00:25]} 46. Kg3 {[%clk 0:00:01]}  Nh6 {[%clk 0:00:26]} 47. Nb4+ {[%clk 0:00:01]}  Ke6 {[%clk 0:00:23]} 48. Ra2 {[%clk 0:00:01]}  Nf5+ {[%clk 0:00:23]} 49. Kf2 {[%clk 0:00:02]}  Nd4 {[%clk 0:00:24]} 50. Ke3 {[%clk 0:00:02]}  Nf5+ {[%clk 0:00:23]} 51. Kd3 {[%clk 0:00:03]}  Nd6 {[%clk 0:00:22]} 52. Nc6 {[%clk 0:00:02]}  Ra8 {[%clk 0:00:22]} 53. a7 {[%clk 0:00:03]}  Kd5 {[%clk 0:00:21]} 54. Nb4+ {[%clk 0:00:03]}  Kc5 {[%clk 0:00:21]} 55. Nc2 {[%clk 0:00:04]}  Nb5 {[%clk 0:00:19]} 56. g4 {[%clk 0:00:04]}  Nxa7 {[%clk 0:00:18]} 57. Ke4 {[%clk 0:00:03]}  Kb6 {[%clk 0:00:17]} 58. g5 {[%clk 0:00:03]}  Rg8 {[%clk 0:00:17]} 59. Kf5 {[%clk 0:00:03]}  Nc6 {[%clk 0:00:18]} 60. Ne3 {[%clk 0:00:03]}  Kc5 {[%clk 0:00:18]} 61. Ng4 {[%clk 0:00:02]}  Nd4+ {[%clk 0:00:15]} 62. Kf6 {[%clk 0:00:02]}  e4 {[%clk 0:00:15]} 63. Nh6 {[%clk 0:00:01]}  Rb8 {[%clk 0:00:15]} 64. g6 {[%clk 0:00:01]}  e3 {[%clk 0:00:16]} 65. g7 {[%clk 0:00:02]}  e2 {[%clk 0:00:16]} 66. Rxe2 {[%clk 0:00:01]}  Nxe2 {[%clk 0:00:17]} 67. g8=Q {[%clk 0:00:02]}  Rxg8 {[%clk 0:00:18]} 68. Nxg8 {[%clk 0:00:02]} 1/2-1/2


[Site "https://www.chess.com"]